[Event "Israeli U18-Team-ch 2024"]
[Site "Rishon LeZion"]
[Date "2024.08.01"]
[Round "4.10"]
[White "Azoulay, Yehonatan"]
[Black "Pevzner, Maks"]
[Result "1-0"]
[ECO "B06"]
[WhiteElo "2009"]
[BlackElo "2052"]
[Annotator "RC"]
[PlyCount "105"]
[EventDate "2024.08.01"]
[EventType "team-tourn"]
[EventCountry "ISR"]
[SourceTitle "playchess.com"]
[Source "ChessBase"]
[SourceQuality "1"]
[TimeControl "3000+10"]

1. e4 {[%emt 0:00:02]} c5 {[%emt 0:00:01]} 2. Nf3 {[%emt 0:00:05]} g6 {[%emt 0:00:05]} 3. c3 {[%emt 0:00:02]} d5 {[%emt 0:00:19]} 4. exd5 {[%emt 0:00:02]} Qxd5 {[%emt 0:00:11]} 5. d4 {[%emt 0:00:01]} Bg7 {[%emt 0:00:24]} 6. Be3 {[%emt 0:00:43]} cxd4 {[%emt 0:02:42]} 7. cxd4 {[%emt 0:00:24]} Nf6 {[%emt 0:01:52]} 8. Nc3 {[%emt 0:00:07]} Qa5 {[%emt 0:00:33]} 9. Bc4 {[%emt 0:01:05]} O-O {[%emt 0:00:37]} 10. O-O {[%emt 0:00:44]} a6 {[%emt 0:02:10]} 11. a3 {[%emt 0:09:38]} b5 {[%emt 0:02:16]} 12. Be2 {[%emt 0:00:06]} Bb7 {[%emt 0:00:44]} 13. Ne5 {[%emt 0:00:45]} Nbd7 {[%emt 0:03:18]} 14. Bf3 {[%emt 0:02:01]} Qc7 {[%emt 0:00:32]} 15. Bf4 {[%emt 0:01:03]} Qb6 {[%emt 0:04:37]} 16. Re1 {[%emt 0:08:09]} Rad8 {[%emt 0:01:06]} 17. Qe2 {[%emt 0:01:41]} Nxe5 {[%emt 0:02:31]} 18. Bxe5 {[%emt 0:01:44]} Rd7 {[%emt 0:02:55]} 19. a4 {[%emt 0:01:16]} b4 {[%emt 0:01:20]} 20. a5 {[%emt 0:00:10]} Bxf3 {[%emt 0:00:54]} 21. Qxf3 {[%emt 0:02:00]} Qb7 {[%emt 0:02:24]} 22. Qxb7 {[%emt 0:00:11]} Rxb7 {[%emt 0:00:02]} 23. Na4 {[%emt 0:00:26]} Nd5 {[%emt 0:00:22]} 24. Nc5 {[%emt 0:00:50]} Rb5 {[%emt 0:01:30]} 25. Bxg7 {[%emt 0:03:30]} Kxg7 {[%emt 0:00:09]} 26. Rec1 {[%emt 0:00:31]} Ra8 {[%emt 0:01:32]} 27. Nb3 {[%emt 0:00:20]} e6 {[%emt 0:04:47]} 28. Rc6 {[%emt 0:00:54]} Ne7 {[%emt 0:00:10]} 29. Rc7 {[%emt 0:00:36]} Nf5 {[%emt 0:01:14]} 30. g4 {[%emt 0:01:30]} Nh4 {[%emt 0:00:05]} 31. Rc6 {[%emt 0:09:18]} e5 {[%emt 0:00:42]} 32. dxe5 {[%emt 0:03:38]} Nf3+ {[%emt 0:00:03]} 33. Kg2 {[%emt 0:00:01]} Nxe5 {[%emt 0:00:15]} 34. Rc7 {[%emt 0:00:00]} Nd3 {[%emt 0:00:27]} 35. Rd1 {[%emt 0:00:43]} Rd5 {[%emt 0:01:14]} 36. Kf1 {[%emt 0:00:39]} Rad8 {[%emt 0:00:19]} 37. Rc2 {[%emt 0:01:25]} f5 {[%emt 0:02:58]} 38. g5 {[%emt 0:00:00]} Kf7 {[%emt 0:02:03]} 39. Rc7+ {[%emt 0:00:03]} R8d7 {[%emt 0:00:19]} 40. Rxd7+ {[%emt 0:00:10]} Rxd7 {[%emt 0:00:02]} 41. Rd2 {[%emt 0:00:01]} Ke6 {[%emt 0:00:29]} 42. Rxd3 {[%emt 0:00:01]} Rc7 {[%emt 0:00:13]} 43. Ke2 {[%emt 0:00:07]} f4 {[%emt 0:00:02]} 44. Kf3 {[%emt 0:00:06]} Ke5 {[%emt 0:00:03]} 45. Nd2 {[%emt 0:00:14]} Rc2 {[%emt 0:00:07]} 46. b3 {[%emt 0:00:05]} Rc3 {[%emt 0:00:24]} 47. Nc4+ {[%emt 0:00:01]} Kf5 {[%emt 0:00:05]} 48. Rxc3 {[%emt 0:00:23]} bxc3 {[%emt 0:00:02]} 49. Ke2 {[%emt 0:00:01]} Ke4 {[%emt 0:00:05]} 50. f3+ {[%emt 0:00:26]} Kd4 {[%emt 0:00:01]} 51. Na3 {[%emt 0:00:01]} Kc5 {[%emt 0:00:01]} 52. Nc2 {[%emt 0:00:01]} Kb5 {[%emt 0:00:02]} 53. Kd3 {[%emt 0:00:05]} 1-0

[Event "Israeli U18-Team-ch 2024"]
[Site "Rishon LeZion"]
[Date "2024.08.01"]
[Round "4.11"]
[White "Zuev, Ilya"]
[Black "Sternfeld, Tomer"]
[Result "0-1"]
[ECO "D37"]
[WhiteElo "1908"]
[BlackElo "1928"]
[Annotator "RC"]
[PlyCount "74"]
[EventDate "2024.08.01"]
[EventType "team-tourn"]
[EventCountry "ISR"]
[SourceTitle "playchess.com"]
[Source "ChessBase"]
[SourceQuality "1"]
[TimeControl "3000+10"]

1. Nf3 {[%emt 0:00:10]} d5 {[%emt 0:00:06]} 2. d4 {[%emt 0:00:04]} e6 {[%emt 0:00:04]} 3. c4 {[%emt 0:00:11]} h6 {[%emt 0:00:10]} 4. Nc3 {[%emt 0:00:09]} Nf6 {[%emt 0:00:07]} 5. Bf4 {[%emt 0:00:49]} Bd6 {[%emt 0:00:10]} 6. Bxd6 {[%emt 0:00:14]} Qxd6 {[%emt 0:00:10]} 7. e3 {[%emt 0:00:43]} a6 {[%emt 0:01:06]} 8. c5 {[%emt 0:02:36]} Qe7 {[%emt 0:03:03]} 9. Bd3 {[%emt 0:00:21]} Nc6 {[%emt 0:07:10]} 10. O-O {[%emt 0:02:21]} e5 {[%emt 0:03:22]} 11. dxe5 {[%emt 0:06:48]} Nxe5 {[%emt 0:00:08]} 12. Be2 {[%emt 0:00:32]} c6 {[%emt 0:01:46]} 13. Nxe5 {[%emt 0:02:48]} Qxe5 {[%emt 0:00:08]} 14. Qd4 {[%emt 0:00:40]} Qe7 {[%emt 0:03:16]} 15. b4 {[%emt 0:02:40]} O-O {[%emt 0:02:19]} 16. a4 {[%emt 0:01:52]} Bf5 {[%emt 0:04:40]} 17. Rac1 {[%emt 0:06:07]} Rfc8 {[%emt 0:04:13]} 18. Rfd1 {[%emt 0:01:07]} Nd7 {[%emt 0:04:40]} 19. e4 {[%emt 0:08:59]} dxe4 {[%emt 0:04:22]} 20. Nxe4 {[%emt 0:00:11]} Bxe4 {[%emt 0:00:20]} 21. Qxd7 {[%emt 0:00:09]} Qg5 {[%emt 0:00:33]} 22. Qg4 {[%emt 0:04:52]} Qe5 {[%emt 0:01:52]} 23. Bc4 {[%emt 0:01:17]} h5 {[%emt 0:03:07]} 24. Qd7 {[%emt 0:01:32]} Qf6 {[%emt 0:04:06]} 25. Re1 {[%emt 0:02:40]} Bf5 {[%emt 0:02:05]} 26. Qe7 {[%emt 0:02:22]} Qg6 {[%emt 0:00:34]} 27. Qxb7 {[%emt 0:00:57]} Rcb8 {[%emt 0:00:05]} 28. Qc7 {[%emt 0:00:18]} Rxb4 {[%emt 0:00:42]} 29. Re7 {[%emt 0:00:43]} Rf8 {[%emt 0:00:00]} 30. Qd6 {[%emt 0:00:44]} Qg5 {[%emt 0:00:14]} 31. f4 {[%emt 0:00:10]} Qh4 {[%emt 0:00:20]} 32. g3 {[%emt 0:00:10]} Qg4 {[%emt 0:00:05]} 33. Rxf7 {[%emt 0:00:09]} Rxf7 {[%emt 0:00:18]} 34. Qd8+ {[%emt 0:00:01]} Kh7 {[%emt 0:00:02]} 35. Bxf7 {[%emt 0:00:03]} Qe2 {[%emt 0:00:17]} 36. Qd1 {[%emt 0:00:30]} Qe3+ {[%emt 0:00:02]} 37. Kg2 {[%emt 0:00:06]} Rb2+ {[%emt 0:00:07]} 0-1

[Event "Israeli U18-Team-ch 2024"]
[Site "Rishon LeZion"]
[Date "2024.08.01"]
[Round "4.12"]
[White "Belkovsky, Guy"]
[Black "Mendler, Omer"]
[Result "1/2-1/2"]
[ECO "B53"]
[WhiteElo "1869"]
[BlackElo "1930"]
[Annotator "RC"]
[PlyCount "124"]
[EventDate "2024.08.01"]
[EventType "team-tourn"]
[EventCountry "ISR"]
[SourceTitle "playchess.com"]
[Source "ChessBase"]
[SourceQuality "1"]
[TimeControl "3000+10"]

1. e4 {[%emt 0:00:01]} c5 {[%emt 0:00:04]} 2. Nf3 {[%emt 0:00:06]} Nc6 {[%emt 0:00:03]} 3. Bb5 {[%emt 0:00:06]} d6 {[%emt 0:01:10]} 4. d4 {[%emt 0:02:18]} cxd4 {[%emt 0:01:02]} 5. Qxd4 {[%emt 0:00:16]} e5 {[%emt 0:02:19]} 6. Qd3 {[%emt 0:04:04]} Nf6 {[%emt 0:00:54]} 7. Bg5 {[%emt 0:00:17]} Be7 {[%emt 0:00:19]} 8. Bxf6 {[%emt 0:02:10]} Bxf6 {[%emt 0:00:04]} 9. Nc3 {[%emt 0:00:56]} O-O {[%emt 0:02:17]} 10. Nd5 {[%emt 0:03:32]} Bg4 {[%emt 0:02:44]} 11. c3 {[%emt 0:00:34]} Be7 {[%emt 0:04:06]} 12. Rd1 {[%emt 0:05:00]} Bxf3 {[%emt 0:05:11]} 13. Qxf3 {[%emt 0:00:27]} Qd7 {[%emt 0:00:37]} 14. O-O {[%emt 0:01:36]} Rad8 {[%emt 0:00:58]} 15. Ne3 {[%emt 0:00:26]} Bf6 {[%emt 0:01:10]} 16. Nf5 {[%emt 0:01:35]} Qc7 {[%emt 0:00:12]} 17. Rd3 {[%emt 0:01:37]} Ne7 {[%emt 0:00:55]} 18. Ne3 {[%emt 0:01:27]} Bg5 {[%emt 0:01:11]} 19. Nd5 {[%emt 0:03:11]} Nxd5 {[%emt 0:00:07]} 20. Rxd5 {[%emt 0:00:07]} Be7 {[%emt 0:00:57]} 21. Ba4 {[%emt 0:01:37]} Kh8 {[%emt 0:00:53]} 22. Qe2 {[%emt 0:04:47]} Qb6 {[%emt 0:05:49]} 23. Kh1 {[%emt 0:00:31]} Rc8 {[%emt 0:01:20]} 24. Bb3 {[%emt 0:00:07]} a5 {[%emt 0:02:12]} 25. f4 {[%emt 0:00:45]} Bf6 {[%emt 0:00:25]} 26. f5 {[%emt 0:02:30]} Ra8 {[%emt 0:02:07]} 27. Qd3 {[%emt 0:02:06]} Rfd8 {[%emt 0:00:49]} 28. Rb5 {[%emt 0:00:08]} Qc7 {[%emt 0:00:13]} 29. Bd5 {[%emt 0:00:25]} Rab8 {[%emt 0:00:51]} 30. Qc4 {[%emt 0:00:45]} Qxc4 {[%emt 0:01:44]} 31. Bxc4 {[%emt 0:00:09]} Rdc8 {[%emt 0:00:31]} 32. Bxf7 {[%emt 0:00:09]} Rc5 {[%emt 0:00:06]} 33. Rb6 {[%emt 0:00:29]} Rc6 {[%emt 0:00:08]} 34. Rb5 {[%emt 0:00:36]} Rc5 {[%emt 0:00:06]} 35. Rxc5 {[%emt 0:01:06]} dxc5 {[%emt 0:00:06]} 36. Rd1 {[%emt 0:00:44]} Rd8 {[%emt 0:00:12]} 37. Bd5 {[%emt 0:00:58]} b6 {[%emt 0:00:26]} 38. g3 {[%emt 0:00:44]} g6 {[%emt 0:01:23]} 39. fxg6 {[%emt 0:00:31]} hxg6 {[%emt 0:00:04]} 40. Kg2 {[%emt 0:00:05]} Kg7 {[%emt 0:00:12]} 41. Kf3 {[%emt 0:00:19]} Kf8 {[%emt 0:01:22]} 42. h4 {[%emt 0:00:05]} Ke7 {[%emt 0:00:05]} 43. Rh1 {[%emt 0:00:09]} Rh8 {[%emt 0:00:31]} 44. a4 {[%emt 0:00:32]} Bg7 {[%emt 0:01:16]} 45. b4 {[%emt 0:00:38]} Rb8 {[%emt 0:01:09]} 46. Rb1 {[%emt 0:00:04]} axb4 {[%emt 0:00:20]} 47. cxb4 {[%emt 0:00:09]} cxb4 {[%emt 0:01:48]} 48. Rxb4 {[%emt 0:00:05]} Bh6 {[%emt 0:00:05]} 49. a5 {[%emt 0:00:20]} Rf8+ {[%emt 0:00:05]} 50. Ke2 {[%emt 0:00:12]} bxa5 {[%emt 0:00:10]} 51. Rb7+ {[%emt 0:00:20]} Kd6 {[%emt 0:00:59]} 52. Rb6+ {[%emt 0:00:17]} Kc5 {[%emt 0:00:10]} 53. Rxg6 {[%emt 0:00:06]} Rh8 {[%emt 0:00:04]} 54. h5 {[%emt 0:01:40]} Bf8 {[%emt 0:01:28]} 55. g4 {[%emt 0:00:07]} Rh6 {[%emt 0:00:25]} 56. Rxh6 {[%emt 0:01:00]} Bxh6 {[%emt 0:00:01]} 57. Kf3 {[%emt 0:00:02]} Kd6 {[%emt 0:00:14]} 58. Ke2 {[%emt 0:00:45]} Ke7 {[%emt 0:00:03]} 59. Kd3 {[%emt 0:00:07]} Kf6 {[%emt 0:00:03]} 60. Kc4 {[%emt 0:00:45]} Bd2 {[%emt 0:00:08]} 61. Kd3 {[%emt 0:00:14]} Bh6 {[%emt 0:00:02]} 62. Bb3 {[%emt 0:00:31]} Bf4 {[%emt 0:00:12]} 1/2-1/2

[Event "Israeli U18-Team-ch 2024"]
[Site "Rishon LeZion"]
[Date "2024.08.01"]
[Round "4.13"]
[White "Shefer, Uri"]
[Black "Semo, Sagy"]
[Result "1-0"]
[ECO "D15"]
[WhiteElo "2063"]
[BlackElo "1852"]
[Annotator "RC"]
[PlyCount "47"]
[EventDate "2024.08.01"]
[EventType "team-tourn"]
[EventCountry "ISR"]
[SourceTitle "playchess.com"]
[Source "ChessBase"]
[SourceQuality "1"]
[TimeControl "3000+10"]

1. d4 {[%emt 0:00:01]} d5 {[%emt 0:00:02]} 2. c4 {[%emt 0:00:06]} c6 {[%emt 0:00:06]} 3. Nf3 {[%emt 0:00:03]} Nf6 {[%emt 0:00:09]} 4. Qb3 {[%emt 0:00:03]} Qb6 {[%emt 0:00:45]} 5. c5 {[%emt 0:00:24]} Qxb3 {[%emt 0:00:06]} 6. axb3 {[%emt 0:00:06]} Bf5 {[%emt 0:01:30]} 7. Nc3 {[%emt 0:01:50]} Na6 {[%emt 0:05:05]} 8. h3 {[%emt 0:04:33]} h6 {[%emt 0:03:40]} 9. Bf4 {[%emt 0:00:56]} e6 {[%emt 0:01:30]} 10. e3 {[%emt 0:02:12]} Nb4 {[%emt 0:00:20]} 11. Ra4 {[%emt 0:00:34]} Nd3+ {[%emt 0:01:06]} 12. Bxd3 {[%emt 0:00:53]} Bxd3 {[%emt 0:00:06]} 13. Ne5 {[%emt 0:00:15]} Bh7 {[%emt 0:01:36]} 14. b4 {[%emt 0:04:38]} Nd7 {[%emt 0:06:06]} 15. b5 {[%emt 0:05:30]} Nxe5 {[%emt 0:14:25]} 16. Bxe5 {[%emt 0:00:06]} f6 {[%emt 0:01:09]} 17. Bg3 {[%emt 0:01:56]} Kd7 {[%emt 0:07:03]} 18. bxc6+ {[%emt 0:03:16]} bxc6 {[%emt 0:02:30]} 19. Kd2 {[%emt 0:00:50]} Kc8 {[%emt 0:00:10]} 20. Rha1 {[%emt 0:00:13]} Kb7 {[%emt 0:00:13]} 21. Rb4+ {[%emt 0:00:20]} Kc8 {[%emt 0:00:08]} 22. Ra6 {[%emt 0:00:13]} e5 {[%emt 0:06:05]} 23. Rxc6+ {[%emt 0:25:02]} Kd7 {[%emt 0:00:00]} 24. Ra6 {[%emt 0:00:00]} 1-0

[Event "Israeli U18-Team-ch 2024"]
[Site "Rishon LeZion"]
[Date "2024.08.01"]
[Round "4.15"]
[White "Hasson Schrager, Shalev"]
[Black "Galmidi, Ram"]
[Result "1/2-1/2"]
[ECO "B52"]
[WhiteElo "1972"]
[BlackElo "1516"]
[Annotator "RC"]
[PlyCount "122"]
[EventDate "2024.08.01"]
[EventType "team-tourn"]
[EventCountry "ISR"]
[SourceTitle "playchess.com"]
[Source "ChessBase"]
[SourceQuality "1"]
[TimeControl "3000+10"]

1. e4 {[%emt 0:00:03]} c5 {[%emt 0:00:01]} 2. Nf3 {[%emt 0:00:08]} d6 {[%emt 0:00:04]} 3. Bb5+ {[%emt 0:00:06]} Bd7 {[%emt 0:00:05]} 4. Bxd7+ {[%emt 0:00:03]} Qxd7 {[%emt 0:00:04]} 5. c4 {[%emt 0:00:05]} Nf6 {[%emt 0:00:03]} 6. Nc3 {[%emt 0:00:03]} Nc6 {[%emt 0:00:08]} 7. d4 {[%emt 0:00:05]} cxd4 {[%emt 0:00:07]} 8. Nxd4 {[%emt 0:00:03]} g6 {[%emt 0:00:11]} 9. Be3 {[%emt 0:00:08]} Bg7 {[%emt 0:00:05]} 10. f3 {[%emt 0:00:20]} O-O {[%emt 0:00:07]} 11. Rc1 {[%emt 0:00:04]} Rac8 {[%emt 0:00:27]} 12. b3 {[%emt 0:00:06]} a6 {[%emt 0:00:38]} 13. a4 {[%emt 0:00:16]} e6 {[%emt 0:02:22]} 14. O-O {[%emt 0:01:48]} d5 {[%emt 0:01:02]} 15. Nxc6 {[%emt 0:00:08]} bxc6 {[%emt 0:00:24]} 16. e5 {[%emt 0:01:07]} Ne8 {[%emt 0:00:41]} 17. Bc5 {[%emt 0:00:11]} Bxe5 {[%emt 0:00:26]} 18. Bxf8 {[%emt 0:00:06]} Kxf8 {[%emt 0:00:03]} 19. Qe2 {[%emt 0:00:25]} Qd6 {[%emt 0:01:54]} 20. g3 {[%emt 0:00:36]} Rb8 {[%emt 0:06:03]} 21. Rfd1 {[%emt 0:04:55]} Bg7 {[%emt 0:05:03]} 22. Rd3 {[%emt 0:02:29]} Qc5+ {[%emt 0:02:00]} 23. Kg2 {[%emt 0:01:23]} Rxb3 {[%emt 0:01:25]} 24. Ne4 {[%emt 0:01:19]} Qb4 {[%emt 0:02:57]} 25. Rxb3 {[%emt 0:00:12]} Qxb3 {[%emt 0:00:03]} 26. Nc5 {[%emt 0:00:18]} Qa3 {[%emt 0:00:47]} 27. Nd3 {[%emt 0:01:12]} Qxa4 {[%emt 0:00:43]} 28. cxd5 {[%emt 0:00:06]} cxd5 {[%emt 0:01:13]} 29. Rc8 {[%emt 0:02:48]} Qd7 {[%emt 0:02:51]} 30. Qc2 {[%emt 0:00:07]} Bf6 {[%emt 0:03:04]} 31. Ra8 {[%emt 0:06:01]} Qb7 {[%emt 0:02:08]} 32. Qc5+ {[%emt 0:00:51]} Be7 {[%emt 0:01:23]} 33. Qa7 {[%emt 0:00:06]} Qxa7 {[%emt 0:01:57]} 34. Rxa7 {[%emt 0:00:01]} Bd6 {[%emt 0:00:26]} 35. Rxa6 {[%emt 0:00:06]} Ke7 {[%emt 0:00:11]} 36. Ra7+ {[%emt 0:02:51]} Nc7 {[%emt 0:00:18]} 37. Nc5 {[%emt 0:03:20]} Kf6 {[%emt 0:01:03]} 38. Na6 {[%emt 0:02:20]} Nxa6 {[%emt 0:00:18]} 39. Rxa6 {[%emt 0:00:01]} Bb4 {[%emt 0:00:29]} 40. Kf1 {[%emt 0:20:33]} h5 {[%emt 0:01:47]} 41. Ra7 {[%emt 0:00:00]} d4 {[%emt 0:00:42]} 42. Ke2 {[%emt 0:00:00]} Bc3 {[%emt 0:00:25]} 43. Kd3 {[%emt 0:00:00]} Bb2 {[%emt 0:00:31]} 44. f4 {[%emt 0:00:00]} Bc3 {[%emt 0:00:28]} 45. Rd7 {[%emt 0:00:00]} Bb2 {[%emt 0:00:49]} 46. h3 {[%emt 0:00:00]} Bc3 {[%emt 0:00:13]} 47. g4 {[%emt 0:00:00]} hxg4 {[%emt 0:00:23]} 48. hxg4 {[%emt 0:00:00]} Bb2 {[%emt 0:00:11]} 49. g5+ {[%emt 0:00:00]} Kg7 {[%emt 0:00:12]} 50. Rd8 {[%emt 0:00:00]} Bc3 {[%emt 0:01:15]} 51. Kc4 {[%emt 0:00:00]} Bb2 {[%emt 0:00:15]} 52. Kb5 {[%emt 0:00:00]} Bc3 {[%emt 0:00:12]} 53. Kc6 {[%emt 0:00:00]} Bb2 {[%emt 0:00:34]} 54. Kd7 {[%emt 0:00:00]} Bc1 {[%emt 0:00:31]} 55. Ke8 {[%emt 0:00:00]} Bxf4 {[%emt 0:00:20]} 56. Rxd4 {[%emt 0:00:00]} Bxg5 {[%emt 0:00:26]} 57. Rd7 {[%emt 0:00:00]} e5 {[%emt 0:02:28]} 58. Rxf7+ {[%emt 0:00:00]} Kh6 {[%emt 0:00:01]} 59. Rf1 {[%emt 0:00:00]} Bf4 {[%emt 0:01:21]} 60. Kf7 {[%emt 0:03:20]} Bg5 {[%emt 0:03:52]} 61. Ke8 e4 {[%emt 0:00:00]} 1/2-1/2

[Event "Israeli U18-Team-ch 2024"]
[Site "Rishon LeZion"]
[Date "2024.08.01"]
[Round "4.16"]
[White "Roth, Elai"]
[Black "Gurevich, Hillel"]
[Result "0-1"]
[ECO "B22"]
[WhiteElo "1623"]
[BlackElo "1871"]
[Annotator "NA RC"]
[PlyCount "60"]
[EventDate "2024.08.01"]
[EventType "team-tourn"]
[EventCountry "ISR"]
[SourceTitle "playchess.com"]
[Source "ChessBase"]
[SourceQuality "1"]
[TimeControl "3000+10"]

1. e4 {[%emt 0:00:02]} c5 {[%emt 0:00:04]} 2. c3 {[%emt 0:00:04]} e6 {[%emt 0:00:08]} 3. d4 {[%emt 0:00:30]} d5 {[%emt 0:00:08]} 4. exd5 {[%emt 0:00:15]} exd5 {[%emt 0:00:08]} 5. Nf3 {[%emt 0:00:23]} Nc6 {[%emt 0:00:11]} 6. Bb5 {[%emt 0:00:52]} Nf6 {[%emt 0:00:24]} 7. O-O {[%emt 0:00:44]} Be7 {[%emt 0:00:31]} 8. Bf4 {[%emt 0:00:56]} O-O {[%emt 0:00:17]} 9. Bxc6 {[%emt 0:01:31]} bxc6 {[%emt 0:00:07]} 10. Ne5 {[%emt 0:00:48]} Bb7 {[%emt 0:04:48]} 11. Nd2 {[%emt 0:07:08]} cxd4 {[%emt 0:01:10]} 12. cxd4 {[%emt 0:00:23]} c5 {[%emt 0:00:14]} 13. Ndf3 {[%emt 0:00:39]} Ne4 {[%emt 0:00:48]} 14. Qb3 {[%emt 0:05:59]} Rb8 {[%emt 0:03:07]} 15. Qd1 {[%emt 0:06:13]} Bd6 {[%emt 0:00:59]} 16. Nd2 {[%emt 0:05:01]} f6 {[%emt 0:03:31]} 17. Nxe4 {[%emt 0:02:55]} fxe5 {[%emt 0:05:50]} 18. Nxd6 {[%emt 0:00:52]} Rxf4 {[%emt 0:00:30]} 19. dxe5 {[%emt 0:00:41]} Qe7 {[%emt 0:01:26]} 20. Re1 {[%emt 0:01:59]} Rbf8 {[%emt 0:01:29]} 21. Re2 {[%emt 0:01:40]} c4 {[%emt 0:00:34]} 22. Rc1 {[%emt 0:03:42]} d4 {[%emt 0:02:51]} 23. Nxb7 {[%emt 0:01:39]} d3 {[%emt 0:00:47]} 24. Rd2 {[%emt 0:01:02]} Qxb7 {[%emt 0:00:11]} 25. Qa4 {[%emt 0:02:40]} c3 {[%emt 0:00:51]} 26. Qxf4 {[%emt 0:02:46]} Rxf4 {[%emt 0:00:05]} 27. Rxc3 {[%emt 0:00:04]} Qe4 {[%emt 0:00:22]} 28. Rc1 {[%emt 0:01:31]} Qd4 {[%emt 0:00:35]} 29. Rc8+ {[%emt 0:00:34]} Kf7 {[%emt 0:22:54]} 30. Rc7+ {[%emt 0:00:14]} Kg6 {[%emt 0:00:00]} 0-1

[Event "Israeli U18-Team-ch 2024"]
[Site "Rishon LeZion"]
[Date "2024.08.01"]
[Round "5.2"]
[White "Vagman, Roy"]
[Black "Milikow, Elie"]
[Result "0-1"]
[ECO "B30"]
[WhiteElo "2308"]
[BlackElo "2399"]
[Annotator "RC"]
[PlyCount "114"]
[EventDate "2024.08.01"]
[EventType "team-tourn"]
[EventCountry "ISR"]
[SourceTitle "playchess.com"]
[Source "ChessBase"]
[SourceQuality "1"]
[TimeControl "3000+10"]

1. e4 {[%emt 0:00:53]} c5 {[%emt 0:00:08]} 2. Nf3 {[%emt 0:00:02]} Nc6 {[%emt 0:00:13]} 3. Bb5 {[%emt 0:49:45]} e6 {[%emt 0:00:14]} 4. O-O {[%emt 0:00:00]} Nge7 {[%emt 0:00:12]} 5. Re1 {[%emt 0:00:00]} a6 {[%emt 0:00:11]} 6. Bf1 {[%emt 0:00:00]} d5 {[%emt 0:00:12]} 7. exd5 {[%emt 0:00:00]} Nxd5 {[%emt 0:00:07]} 8. d4 {[%emt 0:00:00]} Nf6 {[%emt 0:00:12]} 9. Be3 {[%emt 0:00:00]} Be7 {[%emt 0:00:27]} 10. c4 {[%emt 0:00:00]} O-O {[%emt 0:01:46]} 11. Nc3 {[%emt 0:00:00]} cxd4 {[%emt 0:00:45]} 12. Nxd4 {[%emt 0:00:00]} Ne5 {[%emt 0:00:56]} 13. h3 {[%emt 0:00:00]} Bd7 {[%emt 0:05:01]} 14. Nf3 {[%emt 0:00:00]} Ng6 {[%emt 0:10:24]} 15. a3 {[%emt 0:00:00]} Qc7 {[%emt 0:07:03]} 16. b4 {[%emt 0:00:00]} b5 {[%emt 0:03:59]} 17. c5 {[%emt 0:00:00]} Rfd8 {[%emt 0:01:52]} 18. Qc2 {[%emt 0:00:00]} Bc6 {[%emt 0:03:47]} 19. Nd4 {[%emt 0:00:00]} Bb7 {[%emt 0:00:10]} 20. c6 {[%emt 0:00:00]} Bxc6 {[%emt 0:01:00]} 21. Ncxb5 {[%emt 0:00:00]} axb5 {[%emt 0:00:46]} 22. Qxc6 {[%emt 0:00:00]} Qe5 {[%emt 0:01:01]} 23. Qxb5 {[%emt 0:00:00]} Rd5 {[%emt 0:00:44]} 24. Qc6 {[%emt 0:00:00]} Rad8 {[%emt 0:03:01]} 25. Nf3 {[%emt 0:00:00]} Qb8 {[%emt 0:02:40]} 26. Rec1 {[%emt 0:00:00]} R5d7 {[%emt 0:02:23]} 27. Qb6 {[%emt 0:00:00]} Rb7 {[%emt 0:00:32]} 28. Qa6 {[%emt 0:00:00]} Nd5 {[%emt 0:00:08]} 29. Bd4 {[%emt 0:00:00]} Rbd7 {[%emt 0:02:19]} 30. Re1 {[%emt 0:00:00]} Qf4 {[%emt 0:02:57]} 31. Bb2 {[%emt 0:00:00]} Bf6 {[%emt 0:00:00]} 32. Bxf6 {[%emt 0:00:00]} gxf6 {[%emt 0:00:00]} 33. Rac1 {[%emt 0:00:00]} Qb8 {[%emt 0:00:00]} 34. Qc4 {[%emt 0:00:00]} Kh8 {[%emt 0:00:00]} 35. g3 {[%emt 0:00:00]} Rg8 {[%emt 0:00:27]} 36. Kh1 {[%emt 0:00:00]} Qa7 {[%emt 0:00:07]} 37. Qa2 {[%emt 0:01:53]} Nxb4 {[%emt 0:00:03]} 38. Qb2 {[%emt 0:00:04]} Nd5 {[%emt 0:00:03]} 39. Bc4 {[%emt 0:00:48]} Rb8 {[%emt 0:00:35]} 40. Qa2 {[%emt 0:01:22]} Rdb7 {[%emt 0:00:04]} 41. Re2 {[%emt 0:00:29]} Nge7 {[%emt 0:00:04]} 42. Qa1 {[%emt 0:00:22]} Kg7 {[%emt 0:00:17]} 43. Kh2 {[%emt 0:00:00]} Rc7 {[%emt 0:00:10]} 44. Bxd5 {[%emt 0:00:52]} Rxc1 {[%emt 0:00:03]} 45. Qxc1 {[%emt 0:00:01]} Nxd5 {[%emt 0:00:01]} 46. Kg2 {[%emt 0:00:22]} Rb3 {[%emt 0:00:26]} 47. Re4 {[%emt 0:00:00]} Ne7 {[%emt 0:00:17]} 48. h4 {[%emt 0:00:38]} Qa8 {[%emt 0:00:08]} 49. Rg4+ {[%emt 0:00:15]} Ng6 {[%emt 0:00:02]} 50. Qd1 {[%emt 0:00:05]} Rxa3 {[%emt 0:00:14]} 51. h5 {[%emt 0:00:11]} f5 {[%emt 0:00:10]} 52. h6+ {[%emt 0:00:33]} Kxh6 {[%emt 0:00:06]} 53. Rd4 {[%emt 0:00:08]} Kg7 {[%emt 0:00:10]} 54. Rd8 {[%emt 0:00:09]} Qe4 {[%emt 0:00:11]} 55. Rd4 {[%emt 0:00:08]} Qb7 {[%emt 0:00:02]} 56. Rd7 {[%emt 0:00:01]} Qxf3+ {[%emt 0:00:01]} 57. Qxf3 {[%emt 0:00:07]} Rxf3 {[%emt 0:00:02]} 0-1